[Event "Icelandic Chess-ch 2023"]
[Site "Hafnarfjordur"]
[Date "2023.05.20"]
[Round "6.2"]
[White "Ragnarsson, Dagur"]
[Black "Stefansson, Vignir Vatnar"]
[Result "0-1"]
[ECO "D02"]
[WhiteElo "2346"]
[BlackElo "2470"]
[Annotator "TA"]
[PlyCount "130"]
[EventDate "2023.05.13"]
[EventType "tourn"]
[EventCountry "ISL"]
[SourceTitle "playchess.com"]
[Source "ChessBase"]
[SourceQuality "1"]
[TimeControl "40/5400+30:1800+30"]

{[%evp 9,130,15,19,20,12,10,25,0,30,-49,-14,-28,-32,-46,-37,-33,-44,-60,-68,-51,-58,-73,-48,-64,-37,-55,-54,-76,-21,0,-13,-11,-17,-49,-51,-38,-41,-45,-31,-43,-25,-45,-47,-83,-69,-79,-74,-74,-74,-74,-68,-227,-135,-131,-124,-190,-185,-183,-181,-166,-141,-141,-143,-177,-108,-166,-166,-169,-169,-175,-175,-177,-177,-177,-161,-161,-160,-202,-202,-364,-250,-368,-368,-640,-362,-368,-366,-591,-318,-722,-370,-706,-369,-370,-370,-1223,-370,-1624,-2039,-1431,-993,-29964,-29965,-29964,-29965,-29958,-29952,-5089,-2512,-29972,-29973,-29974,-29975,-29976,-29977,-29977,-29978,-29979,-29979,-29976,-29968,-29960,-29960]} 1. d4 {[%emt 0:00:34]} Nf6 {[%emt 0:00:12]} 2. Nf3 {[%emt 0:00:12]} d5 {[%emt 0:00:24]} 3. g3 {[%emt 0:00:07]} c5 {[%emt 0:02:27]} 4. Bg2 {[%emt 0:02:50]} cxd4 {[%emt 0:00:06]} 5. O-O {[%emt 0:00:47]} h6 {[%emt 0:00:04]} 6. b3 {[%emt 0:04:31][%cal Oc1b2][%mdl 1024] White has compensation. D02: 1 d4 d5 2 Nf3 sidelines, including 2...Nf6 3 g3 and 2...Nf6 3 Bf4.} e6 {[%emt 0:01:32]} 7. Bb2 {[%emt 0:01:23]} Be7 {[%emt 0:00:23]} 8. Nbd2 {[%emt 0:06:03] White has an edge.} O-O {[%emt 0:00:52] [#]} 9. Re1 $146 {[%emt 0:05:44]} (9. Nxd4 $11 e5 10. N4f3) ({Predecessor:} 9. Nxd4 Nc6 10. Nxc6 bxc6 11. e4 a5 12. c4 Bb7 13. cxd5 cxd5 14. exd5 Bxd5 15. Nc4 Bxg2 16. Kxg2 {½-½ Barrera Caicedo,H (1870)-Cabiativa,J (1943) Bogota Excalibur op 2022 (3)}) 9... Qc7 {[%emt 0:10:50]} (9... Bc5 $5 {[%cal Rb8c6]}) 10. Bxd4 {[%emt 0:14:40]} Nc6 {[%emt 0:00:37]} 11. Bb2 {[%emt 0:00:05]} Rd8 {[%emt 0:03:49]} 12. c4 {[%emt 0:16:23]} dxc4 {[%emt 0:07:10][%cal Oc4c3]} 13. bxc4 {[%emt 0:06:06]} e5 {[%emt 0:01:46] aiming for ...e4.} 14. Qc2 {[%emt 0:01:59] Prevents e4.} Be6 {[%emt 0:00:18]} 15. Red1 {[%emt 0:01:30]} Rac8 {[%emt 0:02:23] Black is much more active.} 16. Rac1 {[%emt 0:02:00]} Nd7 {[%emt 0:04:17]} 17. Nf1 {[%emt 0:04:06]} Bc5 {[%emt 0:02:32]} 18. N3d2 {[%emt 0:02:55]} Nd4 {[%emt 0:03:37] Against Nb3} ({Black should play} 18... Na5 $17) 19. Bxd4 $11 {[%emt 0:00:06]} Bxd4 {[%emt 0:01:30]} 20. Nb3 {[%emt 0:00:06]} Bb6 {[%emt 0:04:21][%cal Re6c4]} 21. Qe4 {[%emt 0:10:02]} Nf6 {[%emt 0:03:57]} ({Much less strong is} 21... Bxc4 22. Bh3 $16) 22. Rxd8+ {[%emt 0:01:32]} Qxd8 {[%emt 0:00:09]} 23. Qd3 {[%emt 0:03:07]} Qe7 {[%emt 0:04:45] Prevents c5.} 24. Ne3 {[%emt 0:00:07]} Rd8 {[%emt 0:00:05]} 25. Nd5 {[%emt 0:01:20]} Bxd5 {[%emt 0:00:25]} 26. Bxd5 {[%emt 0:00:26]} e4 {[%emt 0:01:13]} 27. Qc2 {[%emt 0:03:02] White is weak on the dark squares} e3 {[%emt 0:07:28]} 28. f3 {[%emt 0:00:13]} Nxd5 {[%emt 0:00:05]} 29. cxd5 {[%emt 0:00:05]} Rxd5 {[%emt 0:00:16][%cal Od5d2]} 30. Rd1 {[%emt 0:00:18] Inhibits Rd2.} (30. Kg2 $15) 30... Qd7 {[%emt 0:00:22]} (30... Qc7 $19 31. Rc1 Qxc2 32. Rxc2 Rd2 33. Rc8+ Kh7) 31. Rxd5 $17 {[%emt 0:00:39]} Qxd5 {[%emt 0:00:05][%mdl 4096] Endgame KQB-KQN} 32. Kf1 {[%emt 0:00:06]} (32. Kg2 $17 {is a better defense.}) 32... a5 $19 {[%emt 0:02:44]} 33. Qd3 {[%emt 0:03:53]} Qe6 {[%emt 0:12:33]} 34. Qb5 {[%emt 0:02:58]} Qc6 {[%emt 0:01:10]} 35. Qxc6 {[%emt 0:00:58]} bxc6 $17 {[%emt 0:00:04][%cal Bb7c6,Bc6c5,Bc5c4][%mdl 32] KB-KN} 36. Ke1 {[%emt 0:00:42]} f5 {[%emt 0:05:50]} (36... c5 $19 37. Na1 c4) 37. Kd1 {[%emt 0:01:47] [#]} (37. Na1 $17 {was necessary.}) 37... c5 $1 $19 {[%emt 0:00:31]} 38. Na1 {[%emt 0:03:24]} c4 {[%emt 0:00:05]} 39. Nc2 {[%emt 0:00:04] [#]} Bc5 {[%emt 0:00:03] Inhibits Na3.} 40. Ne1 {[%emt 0:02:13]} Kf7 {[%emt 0:00:09]} 41. Kc2 {[%emt 0:30:04]} Ke6 {[%emt 0:30:04]} 42. Ng2 {[%emt 0:00:15]} g5 {[%emt 0:02:05]} 43. Kc3 {[%emt 0:00:00]} Kd5 {[%emt 0:00:00]} 44. a3 $2 {[%emt 0:00:00]} (44. Kc2) 44... Bd4+ {[%emt 0:00:00]} ({And not} 44... Bxa3 45. Nxe3+ Kc5 46. Nxf5 $15) 45. Kc2 {[%emt 0:00:00]} a4 {[%emt 0:00:00]} 46. h4 $2 {[%emt 0:00:00]} (46. Ne1) 46... Ke6 {[%emt 0:00:00] White must now prevent ...Ke5.} 47. Kb1 {[%emt 0:00:00]} Kf6 {[%emt 0:00:00]} 48. Kc2 $2 {[%emt 0:00:00]} (48. h5 {might work better.}) 48... Kg6 {[%emt 0:00:00] And now ...gxh4 would win.} 49. hxg5 $2 {[%emt 0:00:00]} (49. Kc1) 49... hxg5 {[%emt 0:00:00]} 50. Kc1 $2 {[%emt 0:00:00]} (50. Kb1) 50... Kf6 {[%emt 0:00:00] Threatens to win with ...Ke7.} 51. Kb1 {[%emt 0:00:00]} Ke5 {[%emt 0:00:00] Strongly threatening ...Bc5.} 52. Kc2 $2 {[%emt 0:00:00]} (52. Ne1) 52... Kd5 {[%emt 0:00:00]} 53. Kc1 $2 {[%emt 0:00:00]} (53. Ne1) 53... Bc5 {[%emt 0:00:00]} 54. Kb2 {[%emt 0:00:00]} Kd4 {[%emt 0:00:00]} 55. g4 {[%emt 0:00:00]} fxg4 {[%emt 0:00:00]} 56. fxg4 {[%emt 0:00:00]} c3+ {[%emt 0:00:00]} 57. Kc2 {[%emt 0:00:22]} Bxa3 {[%emt 0:00:00]} 58. Ne1 {[%emt 0:00:06]} Ke4 {[%emt 0:00:00]} 59. Kxc3 {[%emt 0:03:33]} Kf4 {[%emt 0:00:00] Black mates.} 60. Ng2+ {[%emt 0:02:21]} Kxg4 {[%emt 0:00:00]} 61. Nxe3+ {[%emt 0:00:03]} Kh3 {[%emt 0:00:00]} 62. Kc4 {[%emt 0:00:07]} Bf8 {[%emt 0:00:00]} 63. Nd5 {[%emt 0:00:21]} g4 {[%emt 0:00:00][%cal Bg5g4,Bg4g3][%mdl 32]} 64. Nf4+ {[%emt 0:00:18]} Kh2 {[%emt 0:00:00]} 65. Ng6 {[%emt 0:00:24] [#]} g3 $1 {[%emt 0:00:00] Weighted Error Value: White=0.70/Black=0.17 (very precise)} 0-1

[Event "Icelandic Chess-ch 2023"]
[Site "Hafnarfjordur"]
[Date "2023.05.20"]
[Round "6.3"]
[White "Danielsen, Henrik"]
[Black "Hjartarson, Johann"]
[Result "0-1"]
[ECO "A36"]
[WhiteElo "2501"]
[BlackElo "2466"]
[Annotator "TA"]
[PlyCount "70"]
[EventDate "2023.05.13"]
[EventType "tourn"]
[EventCountry "ISL"]
[SourceTitle "playchess.com"]
[Source "ChessBase"]
[SourceQuality "1"]
[TimeControl "40/5400+30:1800+30"]

{[%evp 20,70,-1,0,0,0,0,0,-5,-6,0,-7,-14,-9,-7,-34,-25,-31,-43,-31,-22,-17,-12,-33,-26,-47,-54,-130,-122,-133,-116,-217,-209,-210,-171,-192,-72,-118,-131,-123,-119,-106,0,-77,-75,-124,-70,-411,-405,-397,-308,-389,-382]} 1. g3 {[%emt 0:01:46]} g6 {[%emt 0:00:19]} 2. c4 {[%emt 0:00:37]} Bg7 {[%emt 0:00:10]} 3. Bg2 {[%emt 0:00:10]} Nf6 {[%emt 0:01:49]} 4. Nc3 {[%emt 0:01:00]} O-O {[%emt 0:00:11]} 5. e4 {[%emt 0:01:54]} d6 {[%emt 0:00:57]} 6. Nge2 {[%emt 0:00:11]} c5 {[%emt 0:00:13]} 7. O-O {[%emt 0:01:11]} Nc6 {[%emt 0:00:13]} 8. d3 {[%emt 0:00:22]} a6 {[%emt 0:01:17]} 9. h3 {[%emt 0:00:46]} Rb8 {[%emt 0:00:11]} 10. a4 {[%emt 0:00:21]} Ne8 {[%emt 0:00:12]} 11. Be3 {[%emt 0:00:57]} e5 {[%emt 0:00:19] A36: Symmetrical English vs ...g6: 4 Bg2 Bg7.} 12. Nd5 {[%emt 0:08:10]} Nc7 {[%emt 0:00:35]} 13. Nec3 {[%emt 0:01:30]} Nxd5 {[%emt 0:00:30] The position is equal.} 14. Nxd5 {[%emt 0:03:36]} Be6 {[%emt 0:00:39] [#]} 15. Nc3 $146 {[%emt 0:00:32]} ({Predecessor:} 15. a5 Bxd5 16. cxd5 Nd4 17. Bd2 f5 18. exf5 gxf5 19. b4 cxb4 20. Bxb4 Rc8 21. Bd2 {½-½ Johansson,K (2456)-Chocenka,D (2453) Baltic Sea/10 2017 [1]}) 15... b6 {[%emt 0:09:47]} 16. Kh2 {[%emt 0:01:01]} Qd7 {[%emt 0:02:03]} 17. h4 {[%emt 0:20:11]} f5 {[%emt 0:06:04]} 18. exf5 {[%emt 0:00:32]} gxf5 {[%emt 0:00:32]} 19. f4 {[%emt 0:00:25]} Kh8 {[%emt 0:00:41]} 20. Qd2 {[%emt 0:02:34]} Nb4 {[%emt 0:11:48]} 21. Rae1 {[%emt 0:09:57]} a5 {[%emt 0:02:13][%cal Oe5e4]} 22. Rd1 {[%emt 0:07:12]} Rg8 {[%emt 0:05:30]} 23. fxe5 {[%emt 0:06:29]} (23. b3 $15) 23... dxe5 $17 {[%emt 0:00:54]} 24. Bg5 {[%emt 0:00:39]} Rbf8 {[%emt 0:09:31][%cal Of5f4]} 25. Bh3 {[%emt 0:03:26] [#]} (25. Nb5 $17) 25... f4 $1 $19 {[%emt 0:11:04][%mdl 512]} 26. Bxe6 {[%emt 0:00:31]} Qxe6 {[%emt 0:00:04]} ({And not} 26... fxg3+ 27. Kg2 Qxe6 28. Ne4 $17) 27. Qe2 {[%emt 0:02:51][%cal Rg5f4]} fxg3+ {[%emt 0:01:51]} (27... Qe8 $19 {has better winning chances. aiming for ...h6.} 28. gxf4 h6) 28. Kg2 {[%emt 0:00:24] [#]} ({Better is} 28. Kxg3 e4 29. Qxe4 Be5+ 30. Kg2) 28... Rf2+ $1 $17 {[%emt 0:03:22][%mdl 512]} 29. Rxf2 {[%emt 0:00:05]} gxf2 {[%emt 0:00:06]} 30. Ne4 {[%emt 0:01:05]} Nc6 {[%emt 0:08:08]} (30... h6 $17 31. Be3 Bf6+ 32. Kh2 Bxh4 33. Bxf2 Bxf2 34. Qxf2 Qe7) 31. Nxf2 {[%emt 0:02:39]} (31. Rf1 $11 {remains equal.}) 31... Nd4 $36 {[%emt 0:00:17][%mdl 2048] Black is in control.} 32. Qe4 {[%emt 0:01:06] [#]} (32. Qg4 $142) 32... Bf6 {[%emt 0:01:22]} (32... h6 $1 $17 {[%cal Rh6g5]} 33. Be3 Nf5) 33. Nh3 {[%emt 0:01:20][%mdl 8192]} (33. Rg1 $1 $15) 33... h6 $19 {[%emt 0:01:39][%cal Bh7h6,Bh6g5][%mdl 96] Pin} 34. Rh1 {[%emt 0:00:20]} Qc6 {[%emt 0:07:40]} ({Stronger than} 34... hxg5 35. hxg5 Qf5 36. Qh4+ Qh7 37. Qxh7+ Kxh7 38. Nf2+ Kg7 39. gxf6+ Kxf6+ 40. Kf1 $11) 35. Kf2 {[%emt 0:21:03] Strongly threatening Qxc6.} hxg5 {[%emt 0:00:39] Weighted Error Value: White=0.46/Black=0.23 (precise)} 0-1

[Event "Icelandic Chess-ch 2023"]
[Site "Hafnarfjordur"]
[Date "2023.05.20"]
[Round "6.4"]
[White "Domalchuk-Jonasson, Aleksandr"]
[Black "Gretarsson, Hjorvar Steinn"]
[Result "1-0"]
[ECO "A26"]
[WhiteElo "2338"]
[BlackElo "2539"]
[Annotator "TA"]
[PlyCount "63"]
[EventDate "2023.05.13"]
[EventType "tourn"]
[EventCountry "ISL"]
[SourceTitle "playchess.com"]
[Source "ChessBase"]
[SourceQuality "1"]
[TimeControl "40/5400+30:1800+30"]

{[%evp 12,63,1,0,0,0,19,17,16,15,13,19,18,20,19,14,53,39,67,40,52,64,66,63,101,69,144,92,172,166,410,410,384,222,203,206,758,737,687,496,585,576,1010,1009,993,976,1183,1149,4179,2892,5139,972,1229,861]} 1. c4 {[%emt 0:00:04]} e5 {[%emt 0:08:00]} 2. Nc3 {[%emt 0:00:13]} Nc6 {[%emt 0:01:14]} 3. Nf3 {[%emt 0:00:14]} g6 {[%emt 0:00:41]} 4. g3 {[%emt 0:02:10]} Bg7 {[%emt 0:02:26]} 5. Bg2 {[%emt 0:00:16]} d6 {[%emt 0:00:45]} 6. d3 {[%emt 0:02:23]} Nge7 {[%emt 0:00:53]} 7. Rb1 {[%emt 0:10:58]} a5 {[%emt 0:01:40] A26: English Opening vs King's Indian with ...Nc6 and d3.} 8. a3 {[%emt 0:00:49][%cal Ba2a3,Ba3b4,Bb4b5,Bb5b6,Bb6c7][%mdl 32]} f5 {[%emt 0:10:06]} 9. Bd2 {[%emt 0:02:36]} O-O {[%emt 0:02:25] The position is equal.} 10. b4 {[%emt 0:02:05]} axb4 {[%emt 0:00:56]} 11. axb4 {[%emt 0:00:05]} Qe8 {[%emt 0:03:15]} 12. Qc1 {[%emt 0:10:28]} Bd7 {[%emt 0:05:07] [#]} 13. h4 $146 {[%emt 0:03:20]} ({Predecessor:} 13. O-O f4 14. Nb5 Qc8 15. e3 fxe3 16. fxe3 h6 17. e4 Kh7 18. Ra1 Rxa1 19. Qxa1 {0-1 Lacko,J (1800)-Virostko,P (1935) CZE-ch U14 Plzen 1995 (9)}) 13... f4 {[%emt 0:06:12]} 14. b5 {[%emt 0:06:28]} Nd8 {[%emt 0:10:02]} 15. Ng5 {[%emt 0:17:32]} h6 {[%emt 0:09:14]} 16. Nge4 {[%emt 0:00:45] b6 would be deadly.} Ne6 {[%emt 0:12:02]} 17. b6 {[%emt 0:13:26]} Bc6 {[%emt 0:02:14] White leaves nothing to chance now.} 18. bxc7 {[%emt 0:01:54]} Qd7 {[%emt 0:01:05] [#]} ({Black should play} 18... Nxc7 $14 19. Nxd6 (19. gxf4 d5 $14) 19... Qd7) 19. Nd5 {[%emt 0:06:49] White is more active.} Rae8 {[%emt 0:02:41]} (19... Bxd5 $16 20. cxd5 Nxd5) 20. Bb4 {[%emt 0:05:19]} Nf5 {[%emt 0:01:34]} (20... Nxd5 21. cxd5 Bxd5) 21. g4 $18 {[%emt 0:01:29][%mdl 64] Deflection} (21. gxf4 Nxf4 22. Bh3 (22. Nxf4 exf4 23. Qxf4 Qxc7 $16) 22... Bxd5 23. cxd5 Nxh3 $16) 21... Nfd4 {[%emt 0:01:50]} 22. Bxd6 {[%emt 0:01:18]} ({Weaker is} 22. Nxd6 Nxc7 23. Nxe8 Rxe8 $18) (22. g5 $142 f3 23. Bh3 fxe2 24. Bxe6+ (24. Nxd6 $2 Bxd5 25. Nxe8 Bxh1 $19) 24... Qxe6 25. gxh6 (25. Nxd6 $2 e4 $19) (25. Bxd6 Rf3 $11) 25... Bxd5 26. cxd5 (26. hxg7 Bxe4 27. gxf8=Q+ Rxf8 $11)) 22... f3 {[%emt 0:01:59]} 23. Bxf3 {[%emt 0:01:46]} Bxd5 $2 {[%emt 0:00:57]} (23... Nxf3+ 24. exf3 Rxf3) 24. cxd5 {[%emt 0:01:20] White is clearly winning.} Nf4 {[%emt 0:00:05]} 25. Qd2 {[%emt 0:03:42]} Nxd5 {[%emt 0:02:45]} 26. Qa2 {[%emt 0:01:36]} ({Worse is} 26. Rxb7 Rxf3 27. g5 Bf8 $11) 26... Rxf3 {[%emt 0:01:37]} 27. Qxd5+ {[%emt 0:00:56]} Rf7 {[%emt 0:00:07]} 28. Rxb7 {[%emt 0:00:35]} Rc8 {[%emt 0:01:25]} 29. Rb8 {[%emt 0:00:43] [#] Qa8 is the strong threat.} Qxg4 {[%emt 0:00:11]} 30. f3 {[%emt 0:00:56]} (30. Bxe5 $2 Qxe2#) 30... Qd7 {[%emt 0:01:40]} 31. Nc5 {[%emt 0:00:29]} (31. Qa8 $142 Ne6 32. Rxc8+ Kh7 33. Rg8 Qxd6 34. Nxd6 Rxc7 35. Kf2) 31... Qf5 {[%emt 0:00:12]} 32. Qe4 {[%emt 0:00:32] Beautiful play by Domalchuk-Jonasson!   Weighted Error Value: White=0.38/Black=0.43} 1-0

[Event "Icelandic Chess-ch 2023"]
[Site "Hafnarfjordur"]
[Date "2023.05.20"]
[Round "6.5"]
[White "Ingvason, Johann"]
[Black "Heimisson, Hilmir Freyr"]
[Result "0-1"]
[ECO "A62"]
[WhiteElo "2076"]
[BlackElo "2353"]
[Annotator "TA"]
[PlyCount "60"]
[EventDate "2023.05.13"]
[EventType "tourn"]
[EventCountry "ISL"]
[SourceTitle "playchess.com"]
[Source "ChessBase"]
[SourceQuality "1"]
[TimeControl "40/5400+30:1800+30"]

{[%evp 18,60,30,12,16,10,19,0,16,21,16,6,0,14,0,-5,0,-39,0,-29,28,0,88,93,65,125,110,103,123,136,174,96,99,103,96,85,103,106,99,0,0,-57,18,-717,-695]} 1. d4 {[%emt 0:10:48]} Nf6 {[%emt 0:06:32]} 2. c4 {[%emt 0:00:17]} e6 {[%emt 0:00:08]} 3. g3 {[%emt 0:00:07]} c5 {[%emt 0:00:14]} 4. d5 {[%emt 0:00:04]} exd5 {[%emt 0:00:20]} 5. cxd5 {[%emt 0:00:06]} d6 {[%emt 0:00:10]} 6. Nc3 {[%emt 0:00:10]} g6 {[%emt 0:00:13]} 7. Bg2 {[%emt 0:00:05]} Bg7 {[%emt 0:00:12]} 8. Nf3 {[%emt 0:00:05]} O-O {[%emt 0:00:13]} 9. O-O {[%emt 0:00:07]} Re8 {[%emt 0:00:14]} 10. Bf4 {[%emt 0:00:53]} (10. Nd2 $5 {[%cal Rd2c4]}) 10... Bf5 {[%emt 0:00:34] 10...h6 is setting a new trend. A62: Modern Benoni: Fianchetto Variation without early ...Nbd7.} 11. Nh4 {[%emt 0:01:42] Threatens to win with Nxf5.} Bg4 {[%emt 0:00:12][%cal Ob7b5]} 12. Qd2 {[%emt 0:00:22]} b5 {[%emt 0:06:21] The position is equal.} 13. Rfe1 {[%emt 0:00:32]} a6 {[%emt 0:02:40]} 14. a3 {[%emt 0:01:15]} Bc8 $1 {[%emt 0:05:24]} 15. h3 {[%emt 0:00:47]} Qb6 {[%emt 0:07:52]} 16. e4 {[%emt 0:00:46] [#]} Nbd7 $146 {[%emt 0:01:34][%cal Bb8d7,Bd7b6,Bb6c4][%mdl 32]} ({Predecessor:} 16... Bb7 17. Nf3 Nbd7 18. Rad1 Rad8 19. b3 Nh5 20. Bg5 Nhf6 21. Bf4 Nh5 22. Bg5 Nhf6 23. Bf4 {½-½ Pubantz,J (2268)-Hommer,J (2172) GER-ch U16 Willingen 2021 (6)}) 17. Be3 {[%emt 0:13:39]} Bb7 {[%emt 0:08:31]} 18. f4 {[%emt 0:05:32][%cal Bf2f4,Bf4f5][%mdl 32]} Re7 {[%emt 0:00:56]} (18... a5 $142) 19. Bf2 {[%emt 0:10:04]} Qd8 {[%emt 0:14:33] [#]} (19... a5 $11 {keeps the balance.}) 20. e5 $1 $16 {[%emt 0:07:10]} Ne8 {[%emt 0:01:25]} (20... dxe5 $2 21. d6 Nb6 22. Qc2 $18 (22. dxe7 Qxd2 23. Rad1 Qxe1+ 24. Bxe1 Bxg2 $16) (22. fxe5 Bxg2 23. exf6 Rxe1+ 24. Rxe1 Nc4 $16) (22. Rxe5 Nc4 $11)) 21. e6 {[%emt 0:01:23]} Nb6 {[%emt 0:07:29] [#]} 22. f5 $1 {[%emt 0:02:01]} Nc4 {[%emt 0:00:13]} 23. Qc2 {[%emt 0:05:15]} Ne5 {[%emt 0:07:28]} 24. exf7+ {[%emt 0:02:17]} (24. Rad1 $18) 24... Rxf7 {[%emt 0:01:07]} 25. fxg6 {[%emt 0:03:16]} hxg6 {[%emt 0:00:12]} 26. Nxg6 {[%emt 0:11:23]} Qg5 {[%emt 0:06:55]} 27. Nxe5 {[%emt 0:00:43]} Bxe5 {[%emt 0:00:06]} 28. Kh2 {[%emt 0:06:49]} (28. Rxe5 $16 Qxe5 29. Re1) 28... Ng7 $11 {[%emt 0:00:32]} 29. Re4 {[%emt 0:01:27]} ({White should try} 29. Rxe5 $11 Qxe5 30. Re1) 29... Bc8 {[%emt 0:03:26] [#]} (29... Raf8 $15 30. Be1 Bc8) 30. Rh4 $2 {[%emt 0:01:31][%mdl 8192]} Qxh4 {[%emt 0:00:41] Weighted Error Value: White=0.44/Black=0.24 (precise)} 0-1

[Event "Icelandic Chess-ch 2023"]
[Site "Hafnarfjordur"]
[Date "2023.05.20"]
[Round "6.6"]
[White "Thorfinnsson, Bragi"]
[Black "Stefansson, Hannes"]
[Result "0-1"]
[ECO "B18"]
[WhiteElo "2431"]
[BlackElo "2521"]
[Annotator "TA"]
[PlyCount "50"]
[EventDate "2023.05.13"]
[EventType "tourn"]
[EventCountry "ISL"]
[SourceTitle "playchess.com"]
[Source "ChessBase"]
[SourceQuality "1"]
[TimeControl "40/5400+30:1800+30"]

{[%evp 9,50,9,10,-1,0,-18,17,0,-2,0,-7,-7,-10,-18,-16,-32,0,0,0,0,0,0,93,-151,-127,-137,-122,-651,-666,-670,-655,-624,-610,-742,-761,-744,-750,-710,-904,-997,-997,-2353,-1779]} 1. e4 {[%emt 0:00:08]} c6 {[%emt 0:00:23]} 2. d4 {[%emt 0:01:37]} d5 {[%emt 0:00:11]} 3. Nc3 {[%emt 0:01:13]} dxe4 {[%emt 0:00:09]} 4. Nxe4 {[%emt 0:00:06]} Bf5 {[%emt 0:00:15]} 5. Qf3 {[%emt 0:01:10]} e6 {[%emt 0:02:29]} 6. Be3 {[%emt 0:04:22] B18: Classical Caro-Kann: 4...Bf5 sidelines.} Nd7 {[%emt 0:03:52]} 7. Bd3 {[%emt 0:02:00]} Bg6 {[%emt 0:01:05]} 8. Ne2 {[%emt 0:14:35] The position is equal.} (8. Ng5 {simplifies} Qf6 9. O-O-O Qxf3 10. N1xf3 Ngf6 11. Bxg6 hxg6 12. c3) 8... Ngf6 {[%emt 0:01:52]} 9. N2g3 {[%emt 0:03:01] [#]} (9. Nxf6+ {simplifies} Nxf6 10. Nf4 Bf5 11. h3) 9... Nd5 $146 {[%emt 0:03:11]} (9... Nxe4 {simplifies} 10. Nxe4 Nf6 11. O-O Nxe4 12. Bxe4 Bd6) ({Predecessor:} 9... Be7 10. O-O-O Nxe4 11. Nxe4 Nf6 12. Kb1 Qd5 13. Nxf6+ gxf6 14. Qxd5 cxd5 15. Bb5+ Kd8 {½-½ Kupreichik,V (2405)-Lintchevski,D (2553) Minsk op 2014 (8)}) 10. Bg5 {[%emt 0:10:42]} (10. O-O {simplifies} Be7 11. c4 Nxe3 12. Qxe3 O-O 13. Rad1) 10... Qb6 {[%emt 0:08:15][%csl LRb2,LRd4]} 11. O-O-O {[%emt 0:08:13]} h6 {[%emt 0:04:48] Strongly threatening ...Bxe4.} ({Don't take} 11... Qxd4 12. Nd6+ Bxd6 13. Bxg6 $14) 12. Be3 {[%emt 0:04:46][%cal Oe4c5]} O-O-O {[%emt 0:02:32]} 13. h4 {[%emt 0:03:20]} Qa5 {[%emt 0:12:47]} 14. Bc4 {[%emt 0:14:54]} (14. h5 $2 Bxe4 15. Bxe4 Qxa2 16. Bxd5 cxd5 $19) 14... f5 {[%emt 0:14:04]} 15. Nd2 {[%emt 0:01:05]} (15. Bxd5 {simplifies} exd5 16. Nc3 Bb4 17. Bf4) 15... e5 {[%emt 0:08:51]} (15... Bd6 $11 {keeps the balance.} 16. h5 Bh7) 16. Nb3 $2 {[%emt 0:10:12]} (16. Nxf5 $16 Kb8 17. Bb3) 16... Qxa2 $17 {[%emt 0:00:48]} 17. Bxd5 {[%emt 0:03:18]} cxd5 {[%emt 0:00:11]} 18. dxe5 $2 {[%emt 0:03:27][%mdl 8192] Now White is beyond hope.} (18. Nxf5 $17 a5 19. Qxd5 Bxf5 20. Qxa5 Qxa5 21. Nxa5) 18... Nxe5 $19 {[%emt 0:01:04] Black is clearly winning.} 19. Qe2 {[%emt 0:01:08]} Nc4 {[%emt 0:01:46][%csl Gc4][%cal Ra2b2]} 20. Bd4 {[%emt 0:00:08]} Bd6 {[%emt 0:04:45]} 21. Qf3 {[%emt 0:01:53] Against Bf4+} Kb8 {[%emt 0:04:23]} 22. h5 {[%emt 0:03:08]} Bh7 {[%emt 0:00:29] Threatens to win with ...f4.} 23. Ne2 {[%emt 0:03:30] [#]} f4 $1 {[%emt 0:04:50][%mdl 512]} 24. Qxd5 {[%emt 0:02:09]} (24. Rd2 Rc8) 24... Rc8 {[%emt 0:00:30][%cal Oh7c2] Hoping for ...Bxc2!} ({Not} 24... Na3 25. Nc3 (25. bxa3 $2 Qxc2#) 25... Bg8 26. Qxd6+ Rxd6 27. Nxa2 $18) 25. Bxg7 {[%emt 0:02:21] [#]} Ba3 $1 {[%emt 0:03:36][%mdl 576] Decoy.   Weighted Error Value: White=0.82/Black=0.08 (flawless)} 0-1

[Event "Icelandic Chess-ch 2023"]
[Site "Hafnarfjordur"]
[Date "2023.05.21"]
[Round "7.1"]
[White "Stefansson, Hannes"]
[Black "Ptacnikova, Lenka"]
[Result "1-0"]
[ECO "B76"]
[WhiteElo "2521"]
[BlackElo "2099"]
[Annotator "TA"]
[PlyCount "41"]
[EventDate "2023.05.13"]
[EventType "tourn"]
[EventCountry "ISL"]
[SourceTitle "playchess.com"]
[Source "ChessBase"]
[SourceQuality "1"]
[TimeControl "40/5400+30:1800+30"]

{[%evp 25,41,34,33,30,39,52,34,63,64,76,142,149,159,159,439,427,892,884]} 1. e4 {[%emt 0:00:20]} c5 {[%emt 0:00:14]} 2. Nf3 {[%emt 0:00:10]} d6 {[%emt 0:00:18]} 3. d4 {[%emt 0:00:13]} cxd4 {[%emt 0:00:03]} 4. Nxd4 {[%emt 0:00:07]} Nf6 {[%emt 0:00:13]} 5. Nc3 {[%emt 0:00:19]} g6 {[%emt 0:00:13]} 6. Be3 {[%emt 0:01:12]} Bg7 {[%emt 0:00:08]} 7. f3 {[%emt 0:00:29]} O-O {[%emt 0:00:50]} 8. Qd2 {[%emt 0:00:36]} Nc6 {[%emt 0:00:24]} 9. O-O-O {[%emt 0:02:14]} d5 {[%emt 0:00:49]} 10. exd5 {[%emt 0:00:41]} Nxd5 {[%emt 0:00:38]} 11. Nxc6 {[%emt 0:00:21]} bxc6 {[%emt 0:00:03]} 12. Bd4 {[%emt 0:00:17]} e5 {[%emt 0:04:37]} 13. Bc5 {[%emt 0:01:56]} Re8 {[%emt 0:01:47]} 14. Bc4 {[%emt 0:12:44] B76: Sicilian Dragon: Yugoslav Attack, 9 g4 and 9 0-0-0.} Qh4 {[%emt 0:12:51]} 15. Bxd5 {[%emt 0:03:40]} cxd5 {[%emt 0:00:07] [#]} 16. Bf2 $146 {[%emt 0:00:50][%cal Bc5f2,Bf2d4,Bd4g7][%mdl 32] White is slightly better.} ({Predecessor:} 16. g3 Qh5 17. Nxd5 Bb7 18. g4 Qh3 19. Qe2 Rad8 20. Qe4 Kh8 21. c4 f5 22. gxf5 gxf5 {1-0 Christiansen,J (2594)-Clarke,B (2470) Colonia de Sant Jordi 1st 2022 (2)}) 16... Qb4 {[%emt 0:02:19] [#] Hoping for ...Rb8.} 17. Nxd5 {[%emt 0:00:17]} (17. Qxd5 $2 {loses.} Rb8 18. Qb3 Qf4+ 19. Kb1 Rxb3 $19) 17... Qc4 {[%emt 0:02:09]} (17... Qb7 $142) 18. b3 $16 {[%emt 0:01:11]} Qa6 {[%emt 0:00:10]} 19. Kb1 {[%emt 0:01:28]} e4 $2 {[%emt 0:04:00]} (19... Qc6 $16 {might work better.} 20. Qc3 Qxc3 21. Nxc3 Bb7) 20. Bd4 $18 {[%emt 0:02:47] [#] Strongly threatening Bxg7. Active counter play!} exf3 {[%emt 0:05:23] Black is weak on the dark squares} (20... Qd6 $142) 21. Bxg7 {[%emt 0:00:57] Black got outplayed after the opening.   Weighted Error Value: White=0.01 (flawless) /Black=0.61} ({Weaker is} 21. gxf3 Qc6 $18) 1-0